Cogmind - Beta 15 @@@ ROGUE MODE // 2025.07.07 @ 22:43:51 Player: SirusTheMadDJ Result: Destroyed by D-53 Grenadier with Mini Grenade Launcher Performance ------------- Evolutions (0) 0 Regions Visited (2) 400 Robots Destroyed (13) 65 Value Destroyed (144) 144 Prototype IDs (0) 0 Alien Tech Used (0) 0 Bonus (0) 0 TOTAL SCORE: 609 Bonus ------- None Cogmind --------- Core Integrity 0/250 Matter 199/300 Energy 82/100 System Corruption 0% Temperature Cool (0) Movement Core (250) Ox4 Location -10/Mines Parts ------- > --- POWER (1) -------- (None) > --- PROPULSION (2) --- Light Treads > --- UTILITY (2) ------ Medium Storage Unit Terrain Scan Processor > --- WEAPON (2) ------- Assault Rifle Light Assault Rifle > --- INVENTORY (10) --- Aluminum Leg Signal Interpreter Core Shielding Mining Laser Plasma Cutter Mining Claw Peak State ------------ > --- POWER ------------ Ion Engine > --- PROPULSION ------- Aluminum Leg Aluminum Leg > --- UTILITY ---------- Medium Storage Unit Terrain Scan Processor > --- WEAPON ----------- Mining Laser Plasma Cutter > --- INVENTORY -------- Light Treads Light Treads Core Shielding Assault Rifle Light Assault Rifle Grenade Launcher [Rating: 9] Favorites ----------- Power Ion Engine Engine Ion Engine Propulsion Aluminum Leg Treads Light Treads Leg Aluminum Leg Utility Medium Storage Unit Storage Medium Storage Unit Processor Terrain Scan Processor Protection Core Shielding Weapon Assault Rifle Energy Gun EM Pulse Gun Ballistic Gun Assault Rifle Launcher Grenade Launcher Special Weapon Mining Laser Slashing Weapon Mining Claw Build | -11 -10 -10 ------- Run | Yrd Mat Min Slots Evolved . | . . . Power . | . . . Propulsion . | . . . Utility . | . . . Weapon . | . . . Parts Attached 18 | 5 7 6 Power 2 | 1 . 1 Engine 2 | 1 . 1 Core . | . . . Reactor . | . . . Propulsion 4 | 2 . 2 Treads 2 | . . 2 Leg 2 | 2 . . Wheel . | . . . Hover . | . . . Flight . | . . . Utility 3 | . 3 . Device . | . . . Storage 1 | . 1 . Processor 1 | . 1 . Hackware . | . . . Protection 1 | . 1 . Artifact . | . . . Weapon 9 | 2 4 3 Energy Gun 1 | 1 . . Energy Cannon . | . . . Ballistic Gun 4 | 1 2 1 Ballistic Cannon . | . . . Launcher 1 | . . 1 Special Weapon 2 | . 2 . Impact Weapon . | . . . Slashing Weapon 1 | . . 1 Piercing Weapon . | . . . Special Melee Weapon . | . . . Unidentified Prototypes . | . . . Parts Lost 5 | . . 5 Power 2 | . . 2 Propulsion 1 | . . 1 Utility . | . . . Weapon 2 | . . 2 Highest Loss Streak 5 | . . 5 To Critical Strikes . | . . . Average Backups 5 | 1 5 9 Power . | . . . Propulsion 1 | 1 2 1 Utility . | . . 2 Weapon 2 | . 2 3 Tool/Special . | . . . Unused Backups 1 | . 1 . Power . | . . . Propulsion . | . . . Utility 1 | . 1 . Weapon . | . . . Tool/Special . | . . . Average Slot Usage (%) 91 | . 90 96 Engine 13 | . 14 13 Leg 27 | . 28 25 Storage 12 | . 12 14 Processor 7 | . 5 14 Protection 1 | . 1 . Energy Gun 5 | . 7 . Ballistic Gun 15 | . 16 15 Special Weapon 3 | . 5 . Slashing Weapon 3 | . . 12 Peak Build Rating 9 | 5 9 9 Average Rating 7 | 4 7 8 On Entrance 4 | . 5 9 Naked Turns . | . . . Heaviest Build 19 | 9 19 19 Greatest Support 20 | 20 20 20 Greatest Overweight (x) . | . . . Average Overweight (x) . | . . . Largest Inventory Capacity 10 | 5 10 10 Average Capacity 9 | 5 9 10 Most Carried 10 | 3 10 10 Average Carried 5 | 1 5 9 Final Capacity 10 | 5 10 10 Final Carried 10 | 3 10 6 Class Distribution -------------------- 100% | Mutant Dominant Class ---------------- Mutant | -10/Materials Mutant | -10/Mines Resources | -11 -10 -10 ----------- Run | Yrd Mat Min Matter Collected 473 | 252 174 47 Remotely . | . . . Salvage Created 385 | 74 229 82 Parts 27 | 4 17 6 Haulers Intercepted 2 | . 2 . Recyclers Shooed . | . . . Parts Field Recycled . | . . . Retrieved Matter . | . . . Parts Self-Destructed . | . . . Prevented . | . . . Kills | -11 -10 -10 ------- Run | Yrd Mat Min Combat Hostiles Destroyed 20 | . 7 13 Guns 12 | . 7 5 AOE 8 | . . 8 Classes Destroyed 5 | 1 3 1 Hauler 2 | . 2 . Recycler 1 | 1 . . Swarmer 9 | . 6 3 Grunt 1 | . 1 . Assembled 10 | . . 10 Best Kill Streak 10 | 1 3 10 Combat Bots Only 10 | . 3 10 Max Kills in Single Turn 3 | 1 2 3 Gunslinging . | . . . Exploded 3 | . . 3 Melee . | . . . Uniques/NPCs Destroyed . | . . . Combat | -11 -10 -10 -------- Run | Yrd Mat Min Hostile Shots Fired 123 | . 40 83 Missed 42 | . 13 29 Hits 81 | . 27 54 Melee 6 | . . 6 Projectile 75 | . 27 48 AOE 5 | . . 5 Critical Strikes 3 | . . 3 Part Disruptions 1 | . . 1 Damage Taken 1170 | . 243 927 Core 289 | . 60 229 Absorbed by Shields . | . . . Core Remaining (%) 100 | 100 . . Volleys Fired 48 | 2 32 14 Largest 2 | 2 2 2 Hottest 120 | 60 120 50 Shots Fired 78 | 4 55 19 Gun 72 | 4 53 15 Cannon . | . . . Launcher 4 | . . 4 Special 2 | . 2 . Kinetic 52 | 2 35 15 Thermal 2 | . 2 . Explosive 4 | . . 4 Electromagnetic 20 | 2 18 . Robot Hit Streak 5 | 3 4 5 Robot Miss Streak 5 | . 5 3 Penetration Max . | . . . Secondary Targets 1 | . . 1 Max Gunslinging Chain 1 | . . 1 Shots Hit Robots 41 | 3 25 13 Core Hits 46 | 2 11 33 Critical Kills . | . . . Critical Parts Destroyed . | . . . Critical Strikes . | . . . Melee Attacks 2 | . . 2 Impact . | . . . Slashing 2 | . . 2 Piercing . | . . . Sneak Attacks . | . . . Combat Hostiles . | . . . Follow-up Attacks . | . . . Damage Inflicted 1120 | 38 337 745 Guns 488 | 38 320 130 Cannons . | . . . Explosions 585 | . . 585 Melee 30 | . . 30 Ramming 7 | . 7 . Kinetic 365 | 10 225 130 Thermal 10 | . 10 . Explosive 585 | . . 585 Electromagnetic 123 | 28 95 . Impact . | . . . Slashing 30 | . . 30 Piercing . | . . . Highest Corruption . | . . . Average Corruption . | . . . Corruption Purged . | . . . Corruption Blocked . | . . . Overload Shots . | . . . Overflow Damage 5 | . . 5 Projectiles . | . . . Explosions 5 | . . 5 Melee . | . . . Knockbacks . | . . . Impact . | . . . Kinetic . | . . . Secondary . | . . . Self-Inflicted Damage 10 | . . 10 Shots 1 | . . 1 Rammed . | . . . Targets Rammed 1 | . 1 . Kicked 1 | . 1 . Crushed . | . . . Highest Temperature 16 | . 12 16 Average Temperature 8 | . 8 8 Received Heat Transfer 152 | . 12 140 Siege Activations . | . . . Martial Activations . | . . . Shielding Activations . | . . . Robots Disrupted . | . . . Combat Hostiles . | . . . Robots Corrupted . | . . . Combat Hostiles . | . . . Parts Fried . | . . . Impact Corruptions . | . . . Robots Melted . | . . . Combat Hostiles . | . . . Parts Melted . | . . . Heat Transferred 37 | . 37 . Parts Sabotaged . | . . . Parts Stolen . | . . . Parts Stripped . | . . . Power Chain Reactions . | . . . Alert | -11 -10 -10 ------- Run | Yrd Mat Min Maximum Alert Level . | . . . Low Security (%) 100 | 100 100 100 Level 1 . | . . . Level 2 . | . . . Level 3 . | . . . Level 4 . | . . . Level 5 . | . . . High Security . | . . . Max Security . | . . . Peak Influence 80 | 5 60 80 Initial 15 | . . 15 Average 26 | . 26 40 Influence Increases 297 | 5 186 106 Destroy 0b10 Robot/C 200 | . 140 60 Destroy 0b10 Robot/NC 15 | 5 10 . Destroy Leader 44 | . 34 10 Disable Machine 15 | . . 15 Destroy Structure 23 | . 2 21 Influence Decreases 286 | 5 147 134 Entered New Map 24 | . . 24 Time Decay 212 | 5 147 60 Lost Part 50 | . . 50 Squads Dispatched 1 | . 1 . Investigation . | . . . Extermination . | . . . Reinforcement 1 | . 1 . Assault . | . . . Garrison . | . . . Intercept . | . . . Searches Triggered . | . . . Construction Impeded . | . . . Haulers Reinforced . | . . . Active Scanning Responses . | . . . Cargo Convoy Interrupts . | . . . Stealth | -11 -10 -10 --------- Run | Yrd Mat Min Distress Signals 1 | . 1 . Communications Jammed . | . . . Distress Signals . | . . . Times Spotted 38 | . 13 25 Peak Tracking Total 18 | . 3 18 Tactical Retreats . | . . . Traps | -11 -10 -10 ------- Run | Yrd Mat Min Traps Triggered . | . . . Indirectly . | . . . Trap Hack Attempts . | . . . Triggered . | . . . Disarmed . | . . . Reprogrammed . | . . . Reused . | . . . Traps Extracted . | . . . Installed . | . . . Triggered . | . . . Machines | -11 -10 -10 ---------- Run | Yrd Mat Min Machines Disabled 1 | . . 1 Max in Single Turn 1 | . . 1 Machines Repaired . | . . . Machines Dismantled . | . . . Machines Sabotaged . | . . . Overloaded Fab Kills . | . . . Hacking | -11 -10 -10 --------- Run | Yrd Mat Min Machines Accessed . | . . . Terminals . | . . . Fabricators . | . . . Repair Stations . | . . . Recycling Units . | . . . Scanalyzers . | . . . Garrison Access . | . . . Total Hacks . | . . . Successful . | . . . Failed . | . . . Catastrophic . | . . . Database Lockouts . | . . . Manual . | . . . Terminals . | . . . Fabricators . | . . . Repair Stations . | . . . Recycling Units . | . . . Scanalyzers . | . . . Garrison Access . | . . . Terminal Hacks . | . . . Fabricator Hacks . | . . . Repair Station Hacks . | . . . Recycling Unit Hacks . | . . . Scanalyzer . | . . . Garrison Access Hacks . | . . . Unauthorized Hacks . | . . . Terminals . | . . . Fabricators . | . . . Repair Stations . | . . . Recycling Units . | . . . Scanalyzers . | . . . Garrison Access . | . . . Data Cores Recovered . | . . . Used . | . . . Hacking Detections . | . . . Full Trace Events . | . . . Feedback Events . | . . . Feedback Blocked . | . . . Robot Schematics Acquired . | . . . Robots Built . | . . . Authchips . | . . . Time . | . . . Total Robot Build Rating . | . . . Part Schematics Acquired . | . . . Parts Built . | . . . Authchips . | . . . Time . | . . . Total Part Build Rating . | . . . Parts Repaired . | . . . Time . | . . . Parts Recycled . | . . . Recycled Matter . | . . . Retrieved Matter . | . . . Retrieved Components . | . . . Parts Scanalyzed . | . . . Part Schematics Acquired . | . . . Parts Damaged . | . . . Bothacking | -11 -10 -10 ------------ Run | Yrd Mat Min Used RIF Installer . | . . . Robots Hacked . | . . . Non-combat . | . . . Combat . | . . . Robot Hacks Applied . | . . . Relay Couplers Released . | . . . Fabnet Peak Effective % . | . . . Robots Rewired . | . . . Allies Hacked . | . . . Hacks Repelled . | . . . Allies | -11 -10 -10 -------- Run | Yrd Mat Min Total Allies . | . . . Largest Group . | . . . Highest-Rated Group . | . . . Highest-Rated Ally . | . . . Total Orders . | . . . Ally Attacks . | . . . Total Damage . | . . . Kills . | . . . Allies Corrupted . | . . . Allies Melted . | . . . Intel | -11 -10 -10 ------- Run | Yrd Mat Min Active Infowar (turns) . | . . . Robot Analysis Total . | . . . Derelict Logs Recovered 1 | . . 1 Drone Launches . | . . . Drone Recoveries . | . . . Exploration | -11 -10 -10 ------------- Run | Yrd Mat Min Turns Passed 600 | 64 409 127 Spaces Moved 351 | 44 241 66 Core 8 | 8 . . Treads 1 | . . 1 Legs 342 | 36 241 65 Wheels . | . . . Hover . | . . . Flight . | . . . Fastest Speed 50 | 50 120 120 Average Speed 118 | 107 120 120 Slowest Speed 160 | 120 120 160 Overloaded Moves . | . . . Propulsion Burnouts . | . . . Robots Hopped . | . . . Potential Cave-ins . | . . . Cave-ins Triggered . | . . . Exploration Rate (%) 28 | 4 53 29 Regions Visited 2 Branch Regions 1 Pre-discovered Areas . | . . . Known Exits Taken . | . . . Unknown Exits Taken 2 | 1 1 . Scrap Searched . | . . . Spaces Dug . | . . . Terrain Destroyed 29 | . 1 28 Melee . | . . . Projectile 1 | . 1 . AOE 28 | . . 28 Terrain Rammed . | . . . Walls Destroyed . | . . . Machines Disabled . | . . . Actions | -11 -10 -10 --------- Run | Yrd Mat Min Total 447 | 55 302 90 Wait 6 | . 6 . Move 349 | 43 240 66 Hop . | . . . Pick Up 14 | 4 10 . Fast Attach 7 | 5 2 . Attach 7 | . 3 4 Detach 2 | . 2 . Swap 7 | . 3 4 Drop 4 | 1 3 . Fire 48 | 2 32 14 Melee 2 | . . 2 Ram . | . . . Kick 1 | . 1 . Crush . | . . . Escape Stasis . | . . . Rewire . | . . . Trap . | . . . Miscellaneous . | . . . Route ------- -11/Scrapyard -10/Materials (discovered 2 exits: [*Mat] / [*Min]) -10/Mines History --------- Turn | Location | Event 11 | -11/Scrapyard | Discovered new exit (range 16) 65 | -11/Scrapyard | Entered Materials 249 | -10/Materials | Discovered new exit (range 11) 303 | -10/Materials | Build established: Mutant 380 | -10/Materials | Discovered new exit (range 12) 474 | -10/Materials | Entered Mines 483 | -10/Mines | Learned Materials terminal intel 549 | -10/Mines | Assembled infested the area 590 | -10/Mines | Core integrity fell below 50% 596 | -10/Mines | Core integrity fell below 20% 601 | -10/Mines | Destroyed by D-53 Grenadier with Mini Grenade Launcher Last Messages --------------- as-34175 destroyed. as-98392 destroyed. Grenade Launcher destroyed. Ion Engine destroyed. Aluminum Leg destroyed. Assault Rifle destroyed. T-07 Excavator destroyed. as-21552 destroyed. Lgt. Treads severed. as-23205 destroyed. as-64166 destroyed. as-75617 destroyed. as-72495 destroyed. as-85958 destroyed. The unstable cave ceiling collapses. as-22094 destroyed. as-99247 destroyed. Ion Engine destroyed. as-06116 destroyed. Switching to secondary target: D-53 Grenadier. Map ----- +----------------------------------------------------+ | ?????????????????????????????????????????? | | ?????????????????????????????????????????? | | ?????????????????????????????????????????? | | ?????????????????????????????????????????? | | ?????????????????????????????????????????? | | ?????????????????????????????????????????? | | ?????????????????????????????????????????? | | ?????????????????????????????????????????? | | ?????????????????????????????????????????? | | ???????????????? ??????????????????????? | | ?????????????? ???????????###????????? | | ????????????? ###???????? #????????? | | ????????????? #????????# #????????? | | ?????????????? #????????# #####????? | | ?????????????? a ????????# ?????? | | ?????????????## ????????# ??????? | | ?????????????# #????????# #???????? | | ?????????????? dd ########### ###?????? | | ?????????????? ####### | | ??????????????? """ """ """ *%* | | ?????????????### """ """ "" = | | ?????????????# """ """ """ ####### | | ????????????## #?????? | | ????????????# """ """ """ #?????? | | ????????????# """ """ """ #?????? | | ????????????# @ """ """ """ #?????? | | ????????????# #?????? | | ????????????## ###############?????? | | ?????????????# #???????????????????? | | ????????????# ###???????????????????? | | ????????????# #?????????????????????? | | ????????????# ##?????????????????????? | | ????????????t ##??????????????????????? | | ??????????? #????????????????????????? | | ?????????? ?????????????????????????? | | ?????????? # ?????????????????????????? | | ?????????#### ?????????????????????????? | | ????????????### ?????????????????????????? | | ?????????????? ?????????????????????????? | | ??????????????#??????????????????????????? | | ?????????????????????????????????????????? | | ?????????????????????????????????????????? | | ?????????????????????????????????????????? | | ?????????????????????????????????????????? | | ?????????????????????????????????????????? | | ?????????????????????????????????????????? | | ?????????????????????????????????????????? | | ?????????????????????????????????????????? | | ?????????????????????????????????????????? | | ?????????????????????????????????????????? | +----------------------------------------------------+ Best States ------------- Heat Dissipation 25 Energy Generation 10 Energy Capacity 250 Matter Stores 300 Matter Capacity 300 Sight Range 16 Terrain Scan Density 85 Core Shielding 20 Evasion (%) 55 Item Schematics ----------------- None Robot Schematics ------------------ None Fabricated ------------ Nothing Repaired ---------- Nothing Alien Tech Used ----------------- None Achievements -------------- None Challenges ------------ None Game ------ Seed RiotMappingStorage Manual? 0 Play Time 00:09:55 Cumulative 15.2 hours Start 2025.07.07 @ 22:35:58 End 2025.07.07 @ 22:43:51 Sessions 1 Manual Loads 0 Difficulty Rogue Special Mode None Game No. 35 Rogue 35 Adventurer 0 Explorer 0 Win Type - Total 0 Types 0/0/0/0/0/0/0/0/0/0 Lore% 6 Gallery% 16 Achievement% 16 Wizard Run 0 Options --------- Layout 1 ASCII 0 Keyboard 0 Movement Mouse Keybinds 0 Fullscreen 1 Font 24/Smallcaps Map View 50x35 Zoom Use 0% Tactical HUD 0 Map Filters NONE Filters NONE Steam 1 RUN: 326e8fee-d41d-4753-934f-1bb8e1cfb65c